bitfinex-derivatives/quotes_ETHF0:USTF0_20260118
["timestamp","ask_amount","ask_price","bid_price","bid_amount"]
[1768724740421,0.51255313,3311.4,3309.9,0.97441262]
[1768724741215,0.5158244,3311.4,3309.9,0.97441262]
[1768724743326,0.5158244,3311.4,3310.6,0.97373388]
[1768724743719,0.00327127,3311.4,3310.6,0.97373388]
[1768724745827,0.00327127,3311.4,3310.8,0.97373388]
[1768724748321,0.29325152,3311.6,3311.0,0.97373388]
[1768724749026,0.29325152,3311.6,3310.8,0.97373388]
[1768724749232,0.29539115,3311.6,3310.8,0.97734008]
[1768724749624,0.00213963,3311.6,3310.8,0.97734008]
[1768724752122,0.00213963,3311.6,3311.1,0.97373388]
[1768724753134,0.29325152,3312.0,3311.1,0.97373388]
[1768724753333,0.94755949,3311.9,3311.1,0.97373388]
[1768724753634,0.29325152,3312.0,3311.1,0.97373388]
[1768724753829,0.94743094,3311.9,3311.1,0.97373388]
[1768724754136,0.00226787,3311.9,3311.1,0.97373388]
[1768724756629,0.00226787,3311.9,3311.3,0.97373388]
[1768724758338,0.00226787,3311.9,3311.1,0.97373388]
[1768724760438,0.00226787,3311.9,3310.8,0.0036062]
[1768724760639,0.00226787,3311.9,3311.2,0.97373388]
[1768724763330,0.97373388,3311.8,3310.8,0.0036062]
[1768724764737,1.27606609,3311.8,3310.8,0.0036062]
[1768724765531,0.30233221,3311.8,3310.8,0.0036062]
[1768724776140,0.97373388,3311.2,3310.8,0.0036062]
[1768724776339,1.27606609,3311.4,3310.0,0.97373388]
[1768724776538,0.30233221,3311.3,3310.0,1.11973388]
[1768724776938,0.30233221,3311.3,3310.2,0.97373388]
[1768724777247,0.30233221,3311.3,3310.2,0.97590464]
[1768724778545,0.30233221,3311.3,3310.2,0.00217076]
[1768724778746,0.30233221,3311.3,3310.2,0.97590464]
[1768724780147,0.30233221,3311.3,3310.2,0.00217076]
[1768724782747,0.30233221,3311.3,3310.3,0.97373388]
[1768724783854,0.3052943,3311.7,3310.5,0.97373388]
[1768724784155,0.94746714,3311.6,3310.5,0.97373388]
[1768724784354,0.94746714,3311.5,3310.5,0.97373388]
[1768724784554,0.3052943,3311.7,3310.5,0.97373388]
[1768724784854,0.94994081,3311.6,3310.5,0.97373388]
[1768724785054,0.94994081,3311.5,3310.5,0.97373388]
[1768724785254,0.3052943,3311.7,3310.5,0.97373388]
[1768724785449,0.94987982,3311.6,3310.5,0.97373388]
[1768724785650,0.94987982,3311.5,3310.5,0.97373388]
[1768724785949,0.3052943,3311.7,3310.5,0.97373388]
[1768724786149,0.94987982,3311.6,3310.5,0.97373388]
[1768724786352,0.94987982,3311.5,3310.5,0.97373388]
[1768724786548,0.3052943,3311.7,3310.5,0.97373388]
[1768724786747,0.94984111,3311.6,3310.5,0.97373388]
[1768724786953,0.94984111,3311.5,3310.5,0.97373388]
[1768724787153,0.3052943,3311.7,3310.5,0.97373388]
[1768724787355,0.94984094,3311.6,3310.5,0.97373388]
[1768724787665,0.94984094,3311.5,3310.5,0.97373388]
[1768724787848,0.3052943,3311.7,3310.5,0.97373388]
[1768724788142,0.94981782,3311.6,3310.5,0.97373388]
[1768724788342,0.94981782,3311.5,3310.5,0.97373388]
[1768724788552,0.3052943,3311.7,3310.5,0.97373388]
[1768724788753,0.94980544,3311.6,3310.5,0.97373388]
[1768724788952,0.94980544,3311.5,3310.5,0.97373388]
[1768724789147,0.3052943,3311.7,3310.5,0.97373388]
[1768724789348,0.94980543,3311.6,3310.5,0.97373388]
[1768724789555,0.94980543,3311.5,3310.5,0.97373388]
[1768724789749,0.3052943,3311.7,3310.5,0.97373388]
[1768724789949,0.94980356,3311.6,3310.5,0.97373388]
[1768724790249,0.94980356,3311.5,3310.5,0.97373388]
[1768724790450,0.3052943,3311.7,3310.5,0.97373388]
[1768724790650,0.94978457,3311.6,3310.5,0.97373388]
[1768724790853,0.94978457,3311.5,3310.5,0.97373388]
[1768724791050,0.3052943,3311.7,3310.5,0.97373388]
[1768724791356,0.94978184,3311.6,3310.5,0.97373388]
[1768724791657,0.94978184,3311.5,3310.5,0.97373388]
[1768724791956,0.3052943,3311.7,3310.5,0.97373388]
[1768724792166,0.94981074,3311.6,3310.5,0.97373388]
[1768724792357,0.94981074,3311.5,3310.5,0.97373388]
[1768724792558,0.3052943,3311.7,3310.5,0.97373388]
[1768724792855,0.9498502,3311.6,3310.5,0.97373388]
[1768724793056,0.9498502,3311.5,3310.5,0.97373388]
[1768724793256,0.3052943,3311.7,3310.5,0.97373388]
[1768724793458,0.94990106,3311.6,3310.5,0.97373388]
[1768724793759,0.94990106,3311.5,3310.5,0.97373388]
[1768724793946,0.3052943,3311.7,3310.5,0.97373388]
[1768724794150,0.94990104,3311.6,3310.5,0.97373388]
[1768724794352,0.94990104,3311.5,3310.5,0.97373388]
[1768724794649,0.3052943,3311.7,3310.5,0.97373388]
[1768724794846,0.94994036,3311.6,3310.5,0.97373388]
[1768724795149,0.94994036,3311.5,3310.5,0.97373388]
[1768724795349,0.3052943,3311.7,3310.5,0.97373388]
[1768724795545,0.94997859,3311.6,3310.5,0.97373388]
[1768724795761,0.94997859,3311.5,3310.5,0.97373388]
[1768724795955,0.3052943,3311.7,3310.5,0.97373388]
[1768724796156,0.94997863,3311.6,3310.5,0.97373388]
[1768724796358,0.94997863,3311.5,3310.5,0.97373388]
[1768724796559,0.3052943,3311.7,3310.5,0.97373388]
[1768724796861,0.95002568,3311.6,3310.5,0.97373388]
[1768724797064,0.95002568,3311.5,3310.5,0.97373388]
[1768724797362,0.3052943,3311.7,3310.5,0.97373388]
[1768724797560,0.95008228,3311.6,3310.5,0.97373388]
[1768724797751,0.95008228,3311.5,3310.5,0.97373388]
[1768724797951,0.3052943,3311.7,3310.5,0.97373388]
[1768724798154,0.95008225,3311.6,3310.5,0.97373388]
[1768724798449,0.95008225,3311.5,3310.5,0.97373388]
[1768724798649,0.3052943,3311.7,3310.5,0.97373388]
[1768724798846,0.95014941,3311.6,3310.5,0.97373388]
[1768724799150,0.95014941,3311.5,3310.5,0.97373388]
[1768724799350,0.3052943,3311.7,3310.5,0.97373388]
[1768724799548,0.95022836,3311.6,3310.5,0.97373388]
[1768724799747,0.95022836,3311.5,3310.5,0.97373388]
[1768724799948,0.3052943,3311.7,3310.5,0.97373388]
[1768724800264,0.95022835,3311.6,3310.5,0.97373388]
[1768724800457,0.95022835,3311.5,3310.5,0.97373388]
[1768724800757,0.3052943,3311.7,3310.5,0.97373388]
[1768724800958,0.9503225,3311.6,3310.5,0.97373388]
[1768724801157,0.9503225,3311.5,3310.5,0.97373388]
[1768724801357,0.3052943,3311.7,3310.5,0.97373388]
[1768724801665,0.95043463,3311.6,3310.5,0.97373388]
[1768724801966,0.95043463,3311.5,3310.5,0.97373388]
[1768724802154,0.3052943,3311.7,3310.5,0.97373388]
[1768724802455,0.95043465,3311.6,3310.5,0.97373388]
[1768724802653,0.95043465,3311.5,3310.5,0.97373388]
[1768724802953,0.95043465,3311.4,3310.5,0.97373388]
[1768724803153,0.3052943,3311.7,3310.5,0.97373388]
[1768724803354,0.95072659,3311.6,3310.2,0.00217076]
[1768724803555,0.95072659,3311.5,3310.2,0.00217076]
[1768724803755,0.95072659,3311.4,3310.2,0.00217076]
[1768724803954,0.3052943,3311.7,3310.2,0.00217076]
[1768724804155,0.95074155,3311.6,3310.2,0.00217076]
[1768724804356,0.95074155,3311.5,3310.2,0.00217076]
[1768724804558,0.95074155,3311.4,3310.2,0.00217076]
[1768724804866,0.3052943,3311.7,3310.2,0.00217076]
[1768724805062,0.95097484,3311.6,3310.2,0.00217076]
[1768724805257,0.95097484,3311.5,3310.2,0.00217076]
[1768724805561,0.95097484,3311.4,3310.2,0.00217076]
[1768724805765,0.3052943,3311.7,3310.2,0.00217076]
[1768724805964,0.9514358,3311.6,3310.2,0.00217076]
[1768724806263,0.9514358,3311.5,3310.2,0.00217076]
[1768724806465,0.9514358,3311.4,3310.2,0.00217076]
[1768724806766,0.3052943,3311.7,3310.2,0.00217076]
[1768724806967,0.95147311,3311.6,3310.2,0.00217076]
[1768724807179,0.95147311,3311.5,3310.2,0.00217076]
[1768724807466,0.95147311,3311.4,3310.2,0.00217076]
[1768724807666,0.3052943,3311.7,3310.2,0.00217076]
[1768724807859,0.95147877,3311.6,3310.2,0.00217076]
[1768724808059,0.95147877,3311.5,3310.2,0.00217076]
[1768724808255,0.95147877,3311.4,3310.2,0.00217076]
[1768724808460,0.3052943,3311.7,3310.2,0.00217076]
[1768724808662,0.95148634,3311.6,3310.2,0.00217076]
[1768724808863,0.95148634,3311.5,3310.2,0.00217076]
[1768724809173,0.95148634,3311.4,3310.2,0.00217076]
[1768724809372,0.3052943,3311.7,3310.2,0.00217076]
[1768724809670,0.95148672,3311.6,3310.2,0.00217076]
[1768724809861,0.95148672,3311.5,3310.2,0.00217076]
[1768724810061,0.95148672,3311.4,3310.2,0.00217076]
[1768724810270,0.3052943,3311.7,3310.2,0.00217076]
[1768724810471,1.28407735,3311.6,3310.2,0.00217076]
[1768724810668,0.95148997,3311.5,3310.2,0.00217076]
[1768724810868,0.95148997,3311.4,3310.2,0.00217076]
[1768724811069,0.33258738,3311.6,3310.2,0.00217076]
[1768724811269,0.95149037,3311.5,3310.2,0.00217076]
[1768724811472,0.95149037,3311.4,3310.2,0.00217076]
[1768724811773,0.33258738,3311.6,3310.2,0.00217076]
[1768724811974,0.95150258,3311.5,3310.2,0.00217076]
[1768724812175,0.95150258,3311.4,3310.2,0.00217076]
[1768724812469,0.95150258,3311.3,3310.2,0.00217076]
[1768724812671,0.33258738,3311.6,3310.2,0.00217076]
[1768724812871,0.9515176,3311.5,3310.2,0.00217076]
[1768724813071,0.9515176,3311.4,3310.2,0.00217076]
[1768724813273,0.95152771,3311.3,3310.2,0.00217076]
[1768724813472,0.33258738,3311.6,3310.2,0.00217076]
[1768724813671,1.27926295,3311.5,3310.2,0.00217076]
[1768724813972,0.95152898,3311.4,3310.2,0.00217076]
[1768724814272,0.32773397,3311.5,3310.2,0.00217076]
[1768724814471,0.95153569,3311.4,3310.2,0.00217076]
[1768724814682,0.32773397,3311.5,3310.2,0.00217076]
[1768724814971,0.94955903,3311.4,3310.2,0.00217076]
[1768724815168,0.32773397,3311.5,3310.2,0.00217076]
[1768724815359,0.94955884,3311.4,3310.2,0.00217076]
[1768724815563,0.32773397,3311.5,3310.2,0.00217076]
[1768724815862,0.94956491,3311.4,3310.2,0.00217076]
[1768724816057,0.32773397,3311.5,3310.2,0.00217076]
[1768724816272,0.94956495,3311.4,3310.2,0.00217076]
[1768724816462,0.32773397,3311.5,3310.2,0.00217076]
[1768724816663,0.94957267,3311.4,3310.2,0.00217076]
[1768724816864,0.32773397,3311.5,3310.2,0.00217076]
[1768724817166,0.94957265,3311.4,3310.2,0.00217076]
[1768724817464,0.32773397,3311.5,3310.2,0.00217076]
[1768724817664,0.94958168,3311.4,3310.2,0.00217076]
[1768724817867,0.32773397,3311.5,3310.2,0.00217076]
[1768724818160,0.94958155,3311.4,3310.2,0.00217076]
[1768724818359,0.32773397,3311.5,3310.2,0.00217076]
[1768724818573,0.9495936,3311.4,3310.2,0.00217076]
[1768724818777,0.32773397,3311.5,3310.2,0.00217076]
[1768724818972,0.94959359,3311.4,3310.2,0.00217076]
[1768724819172,0.32773397,3311.5,3310.2,0.00217076]
[1768724819473,0.94961403,3311.4,3310.2,0.00217076]
[1768724819674,0.94961403,3311.3,3310.2,0.00217076]
[1768724819974,0.32773397,3311.5,3310.2,0.00217076]
[1768724820169,0.94961424,3311.4,3310.2,0.00217076]
[1768724820369,0.32773397,3311.5,3310.3,2.469]
[1768724820571,0.94962281,3311.4,3310.3,2.469]
[1768724820770,0.32773397,3311.5,3310.3,2.469]
[1768724820966,0.94962262,3311.4,3310.3,2.469]
[1768724821169,0.94962261,3311.3,3310.3,2.469]
[1768724821369,0.32773397,3311.5,3310.3,2.469]
[1768724821572,0.94962096,3311.4,3310.3,2.469]
[1768724821771,0.32773397,3311.5,3310.3,2.469]
[1768724821970,0.94962087,3311.4,3310.3,2.469]
[1768724822189,0.32773397,3311.5,3310.3,2.469]
[1768724822377,0.94961931,3311.4,3310.3,2.469]
[1768724822676,0.32773397,3311.5,3310.3,2.469]
[1768724822876,0.94961361,3311.4,3310.3,2.469]
[1768724823065,0.32773397,3311.5,3310.3,2.469]
[1768724823264,0.94961402,3311.4,3310.4,0.97375177]
[1768724823470,0.33000184,3311.9,3310.4,0.97375177]
[1768724823678,1.27728297,3311.8,3310.4,0.97375177]
[1768724823878,0.949549,3311.7,3310.4,0.97375177]
[1768724824069,0.949549,3311.6,3310.4,0.97375177]
[1768724824269,0.949549,3311.5,3310.4,0.97375177]
[1768724824480,0.949549,3311.4,3310.4,0.97375177]
[1768724824779,0.32773397,3311.8,3310.4,0.97375177]
[1768724825075,0.94947765,3311.7,3310.4,0.97375177]
[1768724825278,0.94947765,3311.6,3310.4,0.97375177]
[1768724825478,0.94947765,3311.5,3310.4,0.97375177]
[1768724825778,0.94947765,3311.4,3310.4,0.97375177]
[1768724825984,0.32773397,3311.8,3310.4,0.97375177]
[1768724826276,0.94943383,3311.7,3310.4,0.97375177]
[1768724826471,0.94943383,3311.6,3310.4,0.97375177]
[1768724826666,0.94943383,3311.5,3310.4,0.97375177]
[1768724826967,0.32773397,3311.8,3310.4,0.97375177]
[1768724827175,0.94937757,3311.7,3310.4,0.97375177]
[1768724827478,0.94937757,3311.6,3310.4,0.97375177]
[1768724827678,0.94937757,3311.5,3310.4,0.97375177]
[1768724827875,0.32773397,3311.8,3310.4,0.97375177]
[1768724828081,0.94931757,3311.7,3310.4,0.97375177]
[1768724828380,0.94931757,3311.6,3310.4,0.97375177]
[1768724828677,0.32773397,3311.8,3310.4,0.97375177]
[1768724828878,0.94919573,3311.7,3310.4,0.97375177]
[1768724829071,0.94919573,3311.6,3310.4,0.97375177]
[1768724829272,0.32773397,3311.8,3310.4,0.97375177]
[1768724829472,0.94910805,3311.7,3310.4,0.97375177]
[1768724829671,0.94910805,3311.6,3310.4,0.97375177]
[1768724829876,0.32773397,3311.8,3310.4,0.97375177]
[1768724830076,0.94910803,3311.7,3310.4,0.97375177]
[1768724830382,0.94910803,3311.6,3310.4,0.97375177]
[1768724830583,0.32773397,3311.8,3310.4,0.97375177]
[1768724830772,0.94904044,3311.7,3310.4,0.97375177]
[1768724831075,0.94904044,3311.6,3310.4,1.11975177]
[1768724831276,0.32773397,3311.8,3310.4,1.11975177]
[1768724831472,0.94898651,3311.7,3310.4,1.11975177]
[1768724831680,0.94898651,3311.6,3310.4,1.11975177]
[1768724831881,0.32773397,3311.8,3310.4,1.11975177]
[1768724832071,0.94898525,3311.7,3310.4,1.11975177]
[1768724832271,0.94898525,3311.6,3310.4,1.11975177]
[1768724832480,0.32773397,3311.8,3310.4,1.11975177]
[1768724832679,0.94892095,3311.7,3310.4,1.11975177]
[1768724832868,0.32773397,3311.8,3310.4,1.11975177]
[1768724833073,0.94892081,3311.7,3310.4,1.11975177]
[1768724833273,0.32773397,3311.8,3310.4,1.11975177]
[1768724839180,0.32773397,3311.8,3310.8,0.97375177]
[1768724839381,0.00226787,3311.9,3310.8,0.97375177]
[1768724854785,0.32773397,3312.3,3310.8,0.97375177]
[1768724854985,0.94735895,3312.2,3310.8,0.97375177]
[1768724855186,0.94735895,3312.1,3310.8,0.97375177]
[1768724855393,0.32773397,3312.3,3310.8,0.97375177]
[1768724855593,1.28690998,3312.2,3310.8,0.97375177]
[1768724855786,0.94740279,3312.1,3310.8,0.97375177]
[1768724857386,1.28690998,3312.1,3310.8,0.97375177]
[1768724857590,0.33950719,3312.1,3310.8,0.97375177]
[1768724857898,0.00314634,3312.2,3310.8,1.28622109]
[1768724858492,0.34265353,3312.2,3310.8,0.97375177]
[1768724865507,0.34265353,3312.2,3311.2,0.97331889]
[1768724874511,0.94936811,3312.1,3311.2,0.97331889]
[1768724874696,0.34265353,3312.2,3311.2,0.97331889]
[1768724874899,0.9493681,3312.1,3311.2,0.97331889]
[1768724875099,0.34265353,3312.2,3311.2,0.97331889]
[1768724875300,0.94939255,3312.1,3311.2,0.97331889]
[1768724875500,0.34265353,3312.2,3311.2,0.97331889]
[1768724875710,0.94939238,3312.1,3311.2,0.97331889]
[1768724875907,0.34265353,3312.2,3311.2,0.97331889]
[1768724876208,0.94939237,3312.1,3311.2,0.97331889]
[1768724876408,0.34265353,3312.2,3311.2,0.97331889]
[1768724876604,0.94942043,3312.1,3311.2,0.97331889]
[1768724876806,0.34265353,3312.2,3311.2,0.97331889]
[1768724877111,0.94942041,3312.1,3311.2,0.97331889]
[1768724877407,0.34265353,3312.2,3310.7,0.34266054]
[1768724877600,0.94945346,3312.1,3311.2,0.97331889]
[1768724877800,0.34265353,3312.2,3311.2,0.97331889]
[1768724878001,0.94945449,3312.1,3311.2,0.97331889]
[1768724878198,0.34265353,3312.2,3311.2,0.97331889]
[1768724878399,0.94949376,3312.1,3311.2,0.97331889]
[1768724878601,0.34265353,3312.2,3311.2,0.97331889]
[1768724878804,0.94949374,3312.1,3311.2,0.97331889]
[1768724879008,0.34265353,3312.2,3311.2,0.97331889]
[1768724879205,0.94949373,3312.1,3311.2,0.97331889]
[1768724879408,0.34265353,3312.2,3311.2,0.97331889]
[1768724879609,0.94951923,3312.1,3311.2,0.97331889]
[1768724879808,0.34265353,3312.2,3311.2,0.97331889]
[1768724880007,0.94951927,3312.1,3311.2,0.97331889]
[1768724880306,0.34265353,3312.2,3311.2,0.97331889]
[1768724880609,0.94954169,3312.1,3311.2,0.97331889]
[1768724880807,0.34265353,3312.2,3311.2,0.97331889]
[1768724881007,0.94954168,3312.1,3311.2,0.97331889]
[1768724881215,0.34265353,3312.2,3311.2,0.97331889]
[1768724881416,0.9495751,3312.1,3311.2,0.97331889]
[1768724881616,0.34265353,3312.2,3311.2,0.97331889]
[1768724881804,0.94957514,3312.1,3311.2,0.97331889]
[1768724882005,0.34265353,3312.2,3311.2,0.97331889]
[1768724882217,0.94957531,3312.1,3311.2,0.97331889]
[1768724882406,0.34265353,3312.2,3310.9,0.97331889]
[1768724882607,0.94961871,3312.1,3310.9,0.97331889]
[1768724882803,0.34265353,3312.2,3310.7,0.146]
[1768724883003,2.26903252,3312.1,3310.7,0.146]
[1768724883203,0.94962134,3312.0,3310.7,0.146]
[1768724884821,0.94962134,3312.0,3310.7,1.11931889]
[1768724891733,0.94962134,3312.0,3310.9,0.97331889]
[1768724893027,0.94962134,3312.0,3311.1,0.97331889]
[1768724893328,0.00314634,3312.2,3311.3,0.97331889]
[1768724893536,0.94961628,3312.1,3311.3,0.97331889]
[1768724893835,0.00314634,3312.2,3311.3,0.97331889]
[1768724894037,0.94961637,3312.1,3311.3,0.97331889]
[1768724894338,0.00314634,3312.2,3311.3,0.97331889]
[1768724894633,0.94962107,3312.1,3311.3,0.97331889]
[1768724894835,0.00314634,3312.2,3311.3,0.97331889]
[1768724895033,0.94962106,3312.1,3311.3,0.97331889]
[1768724895233,0.00314634,3312.2,3311.3,0.97331889]
[1768724895434,0.94962688,3312.1,3311.3,0.97331889]
[1768724895635,0.00314634,3312.2,3311.3,0.97331889]
[1768724895935,0.94962692,3312.1,3311.3,0.97331889]
[1768724896126,0.00314634,3312.2,3311.3,0.97331889]
[1768724896329,0.94963344,3312.1,3311.3,0.97331889]
[1768724896538,0.00314634,3312.2,3311.3,0.97331889]
[1768724896739,0.94963342,3312.1,3311.3,0.97331889]
[1768724896939,0.00314634,3312.2,3311.3,0.97331889]
[1768724897140,0.94963341,3312.1,3311.3,0.97331889]
[1768724897440,0.00314634,3312.2,3311.3,0.97331889]
[1768724897639,0.94964081,3312.1,3311.3,0.97331889]
[1768724897839,0.00314634,3312.2,3311.3,0.97331889]
[1768724898043,0.94964079,3312.1,3311.3,0.97331889]
[1768724898232,0.00314634,3312.2,3311.3,0.97331889]
[1768724898431,0.94964897,3312.1,3311.3,0.97331889]
[1768724898638,0.00314634,3312.2,3311.3,0.97331889]
[1768724898841,0.94964901,3312.1,3311.3,0.97331889]
[1768724899037,0.00314634,3312.2,3311.3,0.97331889]
[1768724899242,0.94964901,3312.1,3311.3,0.97331889]
[1768724899442,0.00314634,3312.2,3311.3,0.97331889]
[1768724899642,0.94965814,3312.1,3311.3,0.97331889]
[1768724899846,0.00314634,3312.2,3311.3,0.97331889]
[1768724900145,0.94965814,3312.1,3311.3,0.97331889]
[1768724900345,0.00314634,3312.2,3311.3,0.97331889]
[1768724900658,0.94966811,3312.1,3311.3,0.97331889]
[1768724900945,0.00314634,3312.2,3311.3,0.97331889]
[1768724901150,0.94966757,3312.1,3311.3,0.97331889]
[1768724901344,0.00314634,3312.2,3311.3,0.97331889]
[1768724901537,0.9496784,3312.1,3311.3,0.97331889]
[1768724901738,0.00314634,3312.2,3311.3,0.97331889]
[1768724902037,0.94967844,3312.1,3311.3,0.97331889]
[1768724902336,0.00314634,3312.2,3311.3,0.97331889]
[1768724902538,0.94968841,3312.1,3311.3,0.97331889]
[1768724902749,0.00314634,3312.2,3311.3,0.97331889]
[1768724903046,0.94968839,3312.1,3311.3,0.97331889]
[1768724903346,0.00314634,3312.2,3311.3,0.97331889]
[1768724903540,0.94969916,3312.1,3311.3,0.97331889]
[1768724903739,0.00314634,3312.2,3311.3,0.97331889]
[1768724904040,0.94969915,3312.1,3311.3,0.97331889]
[1768724904245,0.00314634,3312.2,3311.1,0.97331889]
[1768724904445,0.94970607,3312.1,3311.1,0.97331889]
[1768724904747,0.00314634,3312.2,3311.1,0.97331889]
[1768724904946,0.94865061,3312.1,3311.1,0.97331889]
[1768724905140,0.00314634,3312.2,3311.1,0.97331889]
[1768724905339,0.94866356,3312.1,3311.1,0.97331889]
[1768724905540,0.00314634,3312.2,3311.1,0.97331889]
[1768724905742,0.94866373,3312.1,3311.1,0.97331889]
[1768724905945,0.00314634,3312.2,3311.1,0.97331889]
[1768724906151,0.9486636,3312.1,3311.1,0.97331889]
[1768724906343,0.00314634,3312.2,3311.1,0.97331889]
[1768724906643,0.94867967,3312.1,3311.1,0.97331889]
[1768724906842,0.00314634,3312.2,3311.1,0.97331889]
[1768724907048,0.94867965,3312.1,3311.1,0.97331889]
[1768724907248,0.00314634,3312.2,3311.1,0.97331889]
[1768724907449,0.94869706,3312.1,3311.1,0.97331889]
[1768724907743,0.00314634,3312.2,3311.1,0.97331889]
[1768724908047,0.94869692,3312.1,3311.1,0.97331889]
[1768724908251,0.00314634,3312.2,3311.1,0.97331889]
[1768724908550,0.94871503,3312.1,3311.1,0.97331889]
[1768724908739,0.00314634,3312.2,3311.1,0.97331889]
[1768724908937,0.94871501,3312.1,3311.1,0.97331889]
[1768724909142,0.00314634,3312.2,3311.1,0.97331889]
[1768724909451,0.94873499,3312.1,3311.1,0.97331889]
[1768724909747,0.00314634,3312.2,3311.1,0.97331889]
[1768724909939,0.94873253,3312.1,3311.1,0.97331889]
[1768724910139,0.00314634,3312.2,3311.1,0.97331889]
[1768724910335,0.94873662,3312.1,3311.1,0.97331889]
[1768724910540,0.00314634,3312.2,3311.1,0.97331889]
[1768724910740,0.94873665,3312.1,3311.1,0.97331889]
[1768724910947,0.00314634,3312.2,3311.1,0.97331889]
[1768724911247,0.94873664,3312.1,3311.1,0.97331889]
[1768724911447,0.00314634,3312.2,3311.1,0.97331889]
[1768724911647,0.9487664,3312.1,3311.1,0.97331889]
[1768724911849,0.00314634,3312.2,3311.1,0.97331889]
[1768724912051,0.94876638,3312.1,3311.1,0.97331889]
[1768724912351,0.00314634,3312.2,3311.1,0.97331889]
[1768724912650,0.9487998,3312.1,3311.1,0.97331889]
[1768724912844,0.00314634,3312.2,3311.1,0.97331889]
[1768724913043,0.94879979,3312.1,3311.1,0.97331889]
[1768724913249,0.00314634,3312.2,3311.1,0.97331889]
[1768724913449,0.94879761,3312.1,3311.1,0.97331889]
[1768724913650,0.00314634,3312.2,3311.1,0.97331889]
[1768724913843,0.94879761,3312.1,3311.1,0.97331889]
[1768724914040,0.00314634,3312.2,3311.1,0.97331889]
[1768724914240,0.9488064,3312.1,3311.1,0.97331889]
[1768724914441,0.00314634,3312.2,3311.1,0.97331889]
[1768724914643,0.94880638,3312.1,3311.1,0.97331889]
[1768724914849,0.00314634,3312.2,3311.1,0.97331889]
[1768724915050,0.94880637,3312.1,3311.1,0.97331889]
[1768724915250,0.00314634,3312.2,3311.1,0.97331889]
[1768724915441,0.94881841,3312.1,3311.1,0.97331889]
[1768724915643,0.94881841,3312.0,3311.1,0.97331889]
[1768724915940,0.00314634,3312.2,3311.1,0.97331889]
[1768724916141,0.94881847,3312.1,3311.1,0.97331889]
[1768724916347,0.94881847,3312.0,3311.1,0.97331889]
[1768724916641,0.00314634,3312.2,3311.1,0.97331889]
[1768724916841,0.94883234,3312.1,3311.1,0.97331889]
[1768724917052,0.94883234,3312.0,3311.1,0.97331889]
[1768724917257,0.00314634,3312.2,3311.1,0.97331889]
[1768724917449,0.94884938,3312.1,3311.1,0.97331889]
[1768724917646,0.94884938,3312.0,3311.1,0.97331889]
[1768724917847,0.00314634,3312.2,3311.1,0.97331889]
[1768724918054,0.94884915,3312.1,3311.1,0.97331889]
[1768724918255,0.94884915,3312.0,3311.1,0.97331889]
[1768724918458,0.00314634,3312.2,3311.1,0.97331889]
[1768724918755,0.94886951,3312.1,3311.1,0.97331889]
[1768724918958,0.94886951,3312.0,3311.1,0.97331889]
[1768724919153,0.00314634,3312.2,3311.1,0.97331889]
[1768724919350,0.9488946,3312.1,3311.1,0.97331889]
[1768724919546,0.9488946,3312.0,3311.1,0.97331889]
[1768724919849,0.00314634,3312.2,3311.1,0.97331889]
[1768724920049,0.94889463,3312.1,3311.1,0.97331889]
[1768724920252,0.94889463,3312.0,3311.1,0.97331889]
[1768724920456,0.00314634,3312.2,3311.1,0.97331889]
[1768724920658,0.94892735,3312.1,3311.1,0.97331889]
[1768724920957,0.94892735,3312.0,3311.1,0.97331889]
[1768724921158,0.00314634,3312.2,3311.1,0.97331889]
[1768724921357,0.94896585,3312.1,3311.1,0.97331889]
[1768724921556,0.94896585,3312.0,3311.1,0.97331889]
[1768724921762,0.00314634,3312.2,3311.1,0.97331889]
[1768724921961,0.94896584,3312.1,3311.1,0.97331889]
[1768724922154,0.94896584,3312.0,3311.1,0.97331889]
[1768724922353,0.00314634,3312.2,3311.1,0.97331889]
[1768724922653,0.94899758,3312.1,3311.1,0.97331889]
[1768724922854,0.94899758,3312.0,3311.1,0.97331889]
[1768724923054,0.00314634,3312.2,3311.1,0.97331889]
[1768724923255,0.94904763,3312.1,3311.1,0.97331889]
[1768724923463,0.94904763,3312.0,3311.1,0.97331889]
[1768724923654,0.00314634,3312.2,3311.1,0.97331889]
[1768724923853,0.94904761,3312.1,3311.1,0.97331889]
[1768724924057,0.94904761,3312.0,3311.1,0.97331889]
[1768724924258,0.00314634,3312.2,3311.1,0.97331889]
[1768724924460,0.94904778,3312.1,3310.8,0.97331889]
[1768724924649,0.94904778,3312.0,3310.7,0.48866054]
[1768724924854,1.30672549,3312.2,3310.7,0.48866054]
[1768724925062,0.94904828,3312.1,3310.8,0.97331889]
[1768724925254,0.94904828,3312.0,3310.7,0.146]
[1768724925454,0.3334066,3312.2,3310.7,0.146]
[1768724925662,1.2793088,3312.1,3310.7,0.146]
[1768724925863,0.94904854,3312.0,3310.7,0.146]
[1768724926061,0.33026026,3312.1,3310.7,0.146]
[1768724926260,0.94904707,3312.0,3310.7,0.146]
[1768724926464,0.33026026,3312.1,3310.7,0.146]
[1768724926762,0.94904703,3312.0,3310.7,0.146]
[1768724926962,0.33026026,3312.1,3310.7,0.146]
[1768724927161,0.94904702,3312.0,3310.7,0.146]
[1768724927357,0.33026026,3312.1,3310.7,0.146]
[1768724927558,0.94904581,3312.0,3310.7,0.146]
[1768724927863,0.33026026,3312.1,3310.7,0.146]
[1768724928063,0.94904585,3312.0,3310.7,0.146]
[1768724928365,0.33026026,3312.1,3310.7,0.146]
[1768724928668,0.94904454,3312.0,3310.7,0.146]
[1768724928961,0.33026026,3312.1,3310.7,0.146]
[1768724929167,0.94904452,3312.0,3310.7,0.146]
[1768724929357,0.33026026,3312.1,3310.7,0.146]
[1768724929556,0.94904347,3312.0,3310.7,0.146]
[1768724929756,0.33026026,3312.1,3310.7,0.146]
[1768724930055,0.94904343,3312.0,3310.7,0.146]
[1768724930256,0.33026026,3312.1,3310.7,0.146]
[1768724930457,0.94904256,3312.0,3310.7,0.146]
[1768724930659,0.33026026,3312.1,3310.7,0.146]
[1768724930860,0.94904262,3312.0,3310.7,0.146]
[1768724931063,0.33026026,3312.1,3310.7,0.146]
[1768724931264,0.94904148,3312.0,3310.7,0.146]
[1768724931463,0.33026026,3312.1,3310.7,0.146]
[1768724931663,0.94904147,3312.0,3310.7,0.146]
[1768724931860,0.33026026,3312.1,3310.7,0.146]
[1768724932163,0.94904146,3312.0,3310.7,0.146]
[1768724932364,0.33026026,3312.1,3310.7,0.146]
[1768724932554,0.94904068,3312.0,3310.7,0.146]
[1768724932758,0.33026026,3312.1,3310.7,0.146]
[1768724932954,0.94904066,3312.0,3310.7,0.146]
[1768724933256,0.33026026,3312.1,3310.7,0.146]
[1768724933458,0.94904004,3312.0,3310.7,0.146]
[1768724933655,0.33026026,3312.1,3310.7,0.146]
[1768724933856,0.9490401,3312.0,3310.7,0.146]
[1768724934056,0.33026026,3312.1,3310.7,0.146]
[1768724934258,0.94904058,3312.0,3310.7,0.146]
[1768724934458,0.33026026,3312.1,3310.7,0.146]
[1768724934666,0.95548821,3312.0,3310.7,0.146]